lending/lending_fUSD_20250920
["ID","MTS","AMOUNT","RATE_DAILY","PERIOD"]
[386526239,1758352246213,-23452.078053,0.0002,2]
[386526240,1758352246225,-13892.61018712,0.0002,2]
[386526241,1758352246236,-10901.31622828,0.0002,2]
[386526242,1758352246247,-61551.194932,0.0002,2]
[386526243,1758352246259,-19726.3732487,0.0002,2]
[386526244,1758352246292,-3558.15197056,0.0002,2]
[386526746,1758352277827,500.0,0.00013699,2]
[386526748,1758352598993,150.0,0.000169,2]
[386526749,1758352599358,150.0,0.0001808,2]
[386526751,1758353048050,194.50644371,0.00022206,26]
[386526752,1758353048575,213.85708808,0.00023043,30]
[386526753,1758353108365,150.0,0.00018,2]
[386526754,1758353108440,150.0,0.00018,2]
[386526755,1758353108508,150.0,0.00018,2]
[386526756,1758353115997,150.0,0.00018,2]
[386526757,1758353116093,150.0,0.00018,2]
[386526758,1758353116143,150.0,0.00018,2]
[386526759,1758353121868,150.0,0.000169,2]
[386526760,1758353122024,269.48857861,0.00018,2]
[386526761,1758353122292,150.0,0.0001808,2]
[386526764,1758353129361,150.0,0.00018,2]
[386526765,1758353129435,150.0,0.00018,2]
[386526766,1758353131510,150.0,0.00018,2]
[386526776,1758353232539,169.95,0.00028148,120]
[386526777,1758353237877,788.60170785,0.0001305,2]
[386526781,1758353293984,369.19571865,0.000135,2]
[386526785,1758353315663,264.46321291,0.000107,2]
[386526795,1758353324758,160.71094424,0.00012,2]
[386526808,1758353432355,-509.86,0.00018637,2]
[386526809,1758353432443,-833.0,0.00018637,2]
[386526810,1758353432455,-363.10949252,0.00018637,2]
[386526811,1758353432535,-2869.58050748,0.00018637,2]
[386526812,1758353432546,-150.0,0.00018653,2]
[386526813,1758353432555,-1485.99,0.00018668,2]
[386526814,1758353432565,-169.95,0.00018765,2]
[386526815,1758353432575,-1200.0,0.00018917,2]
[386526816,1758353432584,-300.0,0.00018917,2]
[386526817,1758353432594,-250.0,0.00018918,2]
[386526818,1758353432603,-195.0,0.00018919,2]
[386526820,1758353432613,-1477.01435706,0.0001892,2]
[386526822,1758353432623,-458.01,0.00018921,2]
[386526824,1758353432633,-166.41,0.00018921,2]
[386526825,1758353432642,-294.28,0.00018968,2]
[386526826,1758353432652,-7965.41053268,0.00018999,2]
[386526827,1758353432661,-13029.49640884,0.00019,2]
[386526828,1758353432671,-8260.13072239,0.00019054,2]
[386526829,1758353432681,-6238.54140389,0.00019109,2]
[386526830,1758353432691,-150.0,0.0001927,2]
[386526831,1758353432700,-168.0,0.00019386,2]
[386526832,1758353432710,-1397.04001738,0.00019452,2]
[386526833,1758353432720,-168.0,0.00019696,2]
[386526834,1758353432730,-871.09846219,0.00019742,2]
[386526835,1758353432740,-168.0,0.00019777,2]
[386526836,1758353432750,-481.29,0.000198,2]
[386526837,1758353432760,-805.2,0.000198,2]
[386526838,1758353432770,-944.52,0.000198,2]
[386526840,1758353432780,-1700.36008,0.000198,2]
[386526842,1758353432789,-180.8,0.00019887,2]
[386526843,1758353432798,-322.6107,0.00019888,2]
[386526845,1758353432808,-154.31722011,0.00019888,2]
[386526847,1758353432818,-500.0,0.00019888,2]
[386526849,1758353432829,-500.0,0.00019888,2]
[386526851,1758353432838,-500.0,0.00019888,2]
[386526853,1758353432847,-500.0,0.00019888,2]
[386526855,1758353432857,-500.0,0.00019888,2]
[386526856,1758353432867,-200.0,0.00019888,2]
[386526858,1758353432876,-416.16362781,0.00019888,2]
[386526860,1758353432886,-1108.315,0.000199,2]
[386526862,1758353432895,-5898.9545,0.000199,2]
[386526864,1758353432904,-14767.11,0.000199,2]
[386526866,1758353432914,-182.94378316,0.000199,2]
[386526868,1758353432923,-6198.54597945,0.000199,2]
[386526869,1758353432933,-281.13389254,0.000199,2]
[386526871,1758353432942,-25761.63980621,0.000199,2]
[386526873,1758353432952,-5000.0,0.000199,2]
[386526875,1758353432961,-180.8,0.00019965,2]
[386526877,1758353432970,-168.0,0.00019971,2]
[386526879,1758353432979,-501.48738268,0.00019973,2]
[386526880,1758353432988,-500.0,0.00019973,2]
[386526882,1758353432998,-500.0,0.00019973,2]
[386526884,1758353433007,-500.0,0.00019973,2]
[386526886,1758353433017,-500.0,0.00019973,2]
[386526888,1758353433026,-500.0,0.00019973,2]
[386526890,1758353433035,-500.0,0.00019973,2]
[386526891,1758353433045,-481.98032782,0.00019973,2]
[386526893,1758353433054,-500.0,0.00019973,2]
[386526895,1758353433064,-500.0,0.00019973,2]
[386526897,1758353433074,-501.09179752,0.00019973,2]
[386526899,1758353433085,-500.0,0.00019973,2]
[386526901,1758353433094,-500.0,0.00019973,2]
[386526902,1758353433104,-500.0,0.00019973,2]
[386526904,1758353433113,-500.0,0.00019973,2]
[386526906,1758353433125,-150.0,0.00019988,2]
[386526908,1758353433135,-500.0,0.00019988,2]
[386526909,1758353433145,-150.0,0.00019988,2]
[386526910,1758353433155,-500.0,0.00019988,2]
[386526911,1758353433165,-150.0,0.00019988,2]
[386526912,1758353433174,-150.35354847,0.00019988,2]
[386526913,1758353433184,-150.0,0.00019988,2]
[386526914,1758353433193,-150.80091383,0.00019988,2]
[386526915,1758353433203,-202.15223993,0.00019988,2]
[386526916,1758353433383,-150.0,0.00019988,2]
[386526917,1758353433405,-150.0,0.00019988,2]
[386526918,1758353433416,-150.16598139,0.00019988,2]
[386526919,1758353433427,-500.0,0.00019988,2]
[386526921,1758353433437,-150.96993394,0.00019988,2]
[386526923,1758353433447,-150.32705951,0.00019988,2]
[386526925,1758353433457,-150.0,0.00019988,2]
[386526927,1758353433468,-150.0,0.00019988,2]
[386526929,1758353433478,-150.0,0.00019988,2]
[386526931,1758353433488,-150.0,0.00019988,2]
[386526933,1758353433498,-500.0,0.00019988,2]
[386526935,1758353433507,-770.0,0.00019988,2]
[386526937,1758353433517,-500.0,0.00019988,2]
[386526939,1758353433527,-150.0,0.00019988,2]
[386526941,1758353433538,-150.0,0.00019988,2]
[386526943,1758353433548,-150.0,0.00019988,2]
[386526945,1758353433558,-150.0,0.00019988,2]
[386526947,1758353433568,-500.0,0.00019988,2]
[386526949,1758353433579,-500.0,0.00019988,2]
[386526951,1758353433589,-424.0,0.00019988,2]
[386526953,1758353433601,-555.0,0.00019988,2]
[386526955,1758353433611,-150.0,0.00019988,2]
[386526956,1758353433620,-500.0,0.00019988,2]
[386526957,1758353433630,-2603.0,0.00019988,2]
[386526958,1758353433640,-500.0,0.00019988,2]
[386526959,1758353433650,-500.0,0.00019988,2]
[386526960,1758353433659,-500.0,0.00019988,2]
[386526961,1758353433670,-500.0,0.00019988,2]
[386526962,1758353433680,-150.0,0.00019988,2]
[386526963,1758353433690,-150.0,0.00019988,2]
[386526964,1758353433700,-500.0,0.00019988,2]
[386526965,1758353433711,-558.0,0.00019988,2]
[386526966,1758353433720,-150.0,0.00019988,2]
[386526967,1758353433730,-500.0,0.00019988,2]
[386526968,1758353433740,-150.0,0.00019988,2]
[386526969,1758353433750,-1200.0,0.00019988,2]
[386526970,1758353433760,-579.0,0.00019988,2]
[386526971,1758353433770,-5009.79528339,0.00019999,2]
[386526972,1758353433780,-14392.816756,0.0002,2]
[386526973,1758353433789,-558.0,0.0002,2]
[386526974,1758353433799,-14518.66799239,0.0002,2]
[386526975,1758353433813,-16064.54846276,0.0002,2]
[386526976,1758353433824,-110852.24635624,0.0002,2]
[386526977,1758353433835,-2283.55798497,0.0002,2]
[386526978,1758353438214,-500.0,0.00018636,2]
[386526979,1758353438225,-500.0,0.00018636,2]
[386526980,1758353438235,-500.0,0.00018636,2]
[386526981,1758353438246,-500.0,0.00018636,2]
[386526982,1758353438255,-500.0,0.00018636,2]
[386526983,1758353438266,-426.75,0.00018636,2]
[386527081,1758353440255,-144.91956872,0.00018636,2]
[386527082,1758353440266,-3942.52178796,0.0002,2]
[386527083,1758353440280,-435.0,0.0002,2]
[386527084,1758353440488,-28616.67892923,0.0002,2]
[386527085,1758353440498,-343461.24247272,0.0002,2]
[386527086,1758353440508,-3950.0,0.0002,2]
[386527087,1758353440518,-121570.18271788,0.0002,2]
[386527088,1758353440527,-1274.95373995,0.0002,2]
[386527089,1758353440537,-7263.28079946,0.0002,2]
[386527090,1758353440546,-199.9782368,0.0002,3]
[386527091,1758353440555,-150.0,0.0002,2]
[386527092,1758353440565,-3049.77032457,0.0002,5]
[386527093,1758353440575,-1029.13877916,0.0002,2]
[386527094,1758353440585,-2819.4946404,0.0002,2]
[386527095,1758353440595,-90643.83026293,0.0002,2]
[386527096,1758353440610,-150.0,0.0002,2]
[386527097,1758353440621,-7897.69174106,0.0002,2]
[386527098,1758353440632,-5000.0,0.0002,2]
[386527099,1758353440642,-500.0,0.0002,2]
[386527100,1758353440652,-500.0,0.0002,2]
[386527101,1758353440664,-36990.68542478,0.0002,2]
[386527102,1758353440674,-2000.0,0.0002,2]
[386527103,1758353440686,-400.0,0.0002,2]
[386527104,1758353440697,-152.77926327,0.0002,2]
[386527105,1758353440707,-152.78144847,0.0002,2]
[386527106,1758353440718,-1929411.40553251,0.0002,2]
[386527108,1758353440727,-10748.10723205,0.0002,2]
[386527110,1758353440737,-1509.61290643,0.0002,2]
[386527112,1758353440747,-25201.4210492,0.0002,2]
[386527114,1758353440757,-121003.78261855,0.0002,5]
[386527116,1758353440767,-2514.66061242,0.0002,4]
[386527118,1758353440777,-141866.99548677,0.0002,2]
[386527120,1758353440791,-1051.42811525,0.0002,2]
[386527127,1758353443217,-1068.04417448,0.0002,2]
[386527128,1758353443245,-681.00000008,0.0002,2]
[386527129,1758353443256,-330.67919755,0.0002,2]
[386527130,1758353443268,-445.88284711,0.0002,2]
[386527131,1758353443333,-570.14988775,0.0002,2]
[386527132,1758353443344,-299053.79036215,0.0002,2]
[386527133,1758353443416,-4352.49669403,0.0002,2]
[386527134,1758353443427,-15241.54676411,0.0002,2]
[386527135,1758353443487,-485.29999995,0.0002,2]
[386527153,1758353446063,-273.00614092,0.0002,2]
[386527154,1758353446075,-380.99744369,0.0002,2]
[386527155,1758353446154,-1626.24624019,0.0002,2]
[386527156,1758353446247,-6224.82302791,0.0002,2]
[386527157,1758353446260,-1935.07018849,0.0002,2]
[386527158,1758353446416,-2870.78580991,0.0002,2]
[386527159,1758353446428,-3289.91266796,0.0002,2]
[386527160,1758353446440,-10171.25649789,0.0002,2]
[386527161,1758353446451,-312.99006427,0.0002,2]
[386527162,1758353446463,-569.6828336,0.0002,2]
[386527163,1758353446475,-601.97246759,0.0002,2]
[386527861,1758353643954,150.0,0.000178,2]
[386527865,1758353907079,154.54,9.497e-05,2]
[386527866,1758353907151,154.54,0.00010175,2]
[386527867,1758353907224,154.54,0.00010853,2]
[386527868,1758353907624,154.54,0.00011532,2]
[386527869,1758353907831,154.54,0.0001221,2]
[386527870,1758353908035,154.54,0.00012888,2]
[386527871,1758353908938,154.54,0.00013567,2]
[386527872,1758353908997,154.54,0.00014245,2]
[386527873,1758353909051,154.54,0.00014923,2]
[386527874,1758353909099,154.54,0.00015602,2]
[386527875,1758353909300,154.54,0.0001628,2]
[386527876,1758353909545,154.54,0.00016958,2]
[386527877,1758353909767,154.54,0.00017637,2]
[386527878,1758353910180,154.54,0.00018315,2]
[386527879,1758353920921,1020.0,0.00030137,120]
[386527886,1758354085400,500.0,0.00013699,2]
[386527890,1758354164873,150.0,0.000178,2]
[386527891,1758354314883,150.0,0.00018,2]
[386527899,1758354556087,216.798,0.00030137,120]
[386527900,1758354569891,200.0,0.00022,30]
[386527902,1758354587402,897.89184905,0.00018,2]
[386527910,1758354632287,-199.71,0.00018949,2]
[386527911,1758354632298,-294.27,0.00018949,2]
[386527912,1758354632308,-12.24206086,0.0001898,2]
[386527913,1758354632345,-137.75793914,0.0001898,2]
[386527914,1758354632355,-195.0,0.00018983,2]
[386527915,1758354632365,-154.54,0.00018993,2]
[386527916,1758354632374,-168.0,0.00019295,2]
[386527917,1758354632385,-500.0,0.00019329,2]
[386527918,1758354632395,-448.66917901,0.00019329,2]
[386527919,1758354632405,-220.51508403,0.00019329,2]
[386527920,1758354632415,-168.0,0.0001933,2]
[386527921,1758354632425,-168.0,0.00019696,2]
[386527922,1758354632435,-168.0,0.00019798,2]
[386527923,1758354632445,-1200.0,0.00019799,2]
[386527924,1758354632457,-1416.96673,0.000198,2]
[386527925,1758354632467,-168.0,0.00019838,2]
[386527926,1758354632478,-200.0,0.0001984,2]
[386527927,1758354632489,-168.0,0.00019867,2]
[386527928,1758354632500,-150.7,0.00019889,2]
[386527929,1758354632511,-300.0,0.00019898,2]
[386527930,1758354632521,-173.48727393,0.00019899,2]
[386527931,1758354632530,-285.27810989,0.00019899,2]
[386527932,1758354632539,-193.16173615,0.00019899,2]
[386527933,1758354632550,-2411.63022672,0.000199,2]
[386527934,1758354632576,-525.97649163,0.000199,2]
[386527935,1758354632599,-1741.5553096,0.000199,2]
[386527936,1758354632612,-1098.39799999,0.000199,2]
[386527937,1758354632624,-691.98,0.000199,2]
[386527938,1758354632636,-361.404,0.000199,2]
[386527939,1758354632676,-1345.0415323,0.000199,2]
[386528120,1758354638599,-2256.74194687,0.000199,2]
[386528121,1758354638610,-3743.53160532,0.000199,2]
[386528290,1758354640368,-1180.2116962,0.000199,2]
[386528305,1758354640512,-7600.85549933,0.000199,2]
[386528307,1758354640522,-1416.96674,0.000199,2]
[386528309,1758354640531,-46370.9516511,0.000199,2]
[386528311,1758354640540,-1029.0,0.000199,2]
[386528313,1758354640550,-150.0,0.0001993,2]
[386528315,1758354640559,-150.7,0.00019967,2]
[386528317,1758354640569,-500.0,0.00019973,2]
[386528319,1758354640579,-500.0,0.00019973,2]
[386528321,1758354640588,-500.0,0.00019973,2]
[386528323,1758354640598,-500.0,0.00019973,2]
[386528325,1758354640607,-500.0,0.00019973,2]
[386528327,1758354640617,-500.0,0.00019973,2]
[386528329,1758354640626,-500.0,0.00019973,2]
[386528331,1758354640635,-475.69933886,0.00019973,2]
[386528333,1758354640646,-500.0,0.00019973,2]
[386528335,1758354640655,-500.0,0.00019973,2]
[386528337,1758354640664,-506.51296997,0.00019973,2]
[386528339,1758354640674,-500.0,0.00019973,2]
[386528341,1758354640683,-151.0,0.00019997,2]
[386528343,1758354640693,-23034.32046851,0.0002,2]
[386528345,1758354640703,-30805.43982321,0.0002,2]
[386528347,1758354640712,-2773337.02772763,0.0002,2]
[386528444,1758354641644,-23770.0,0.0002,2]
[386528446,1758354641656,-13575.67414627,0.0002,2]
[386528448,1758354641667,-7134.71404299,0.0002,2]
[386528450,1758354641678,-36413.24410803,0.0002,2]
[386528455,1758354641709,-255.15150001,0.0002,2]
[386528655,1758354643677,-460647.59780307,0.0002,2]
[386528951,1758354646556,-15164.50799556,0.0002,2]
[386529098,1758354755525,1599.10945319,0.000301,120]
[386529099,1758354768717,329.00213455,0.000301,120]
[386529100,1758354794939,182.51,9.48e-05,2]
[386529101,1758354795154,182.51,9.979e-05,2]
[386529102,1758354795395,182.51,0.00010478,2]
[386529103,1758354795630,182.51,0.00010977,2]
[386529104,1758354795826,182.51,0.00011476,2]
[386529105,1758354796025,182.51,0.00011975,2]
[386529106,1758354796242,182.51,0.00012474,2]
[386529107,1758354796447,182.51,0.00012973,2]
[386529108,1758354796643,182.51,0.00013472,2]
[386529109,1758354796881,182.51,0.00013971,2]
[386529110,1758354797331,182.51,0.0001447,2]
[386529111,1758354797491,182.51,0.00014969,2]
[386529112,1758354797720,182.51,0.00015468,2]
[386529113,1758354797908,182.51,0.00015967,2]
[386529114,1758354798119,182.51,0.00016466,2]
[386529115,1758354799008,182.51,0.00016965,2]
[386529116,1758354799063,182.51,0.00017464,2]
[386529117,1758354799161,182.51,0.00017963,2]
[386529118,1758354799212,182.51,0.00018462,2]
[386529119,1758354854683,168.66549802,0.00022763,30]
[386529124,1758355350951,150.0,0.00022668,120]
[386529125,1758355373533,192.61,0.00028518,120]
[386529128,1758355531554,150.0,0.00029148,120]
[386529132,1758355650594,150.0,0.00028888,120]
[386529143,1758355831767,-182.51,0.00018961,2]
[386529144,1758355831777,-303.03383145,0.00018961,2]
[386529145,1758355831787,-195.0,0.00018961,2]
[386529146,1758355831797,-300.0,0.00018961,2]
[386529147,1758355831807,-8.9962833,0.00018961,2]
[386529148,1758355831831,-241.0037167,0.00018961,2]
[386529149,1758355831841,-165.25,0.00018961,2]
[386529150,1758355831852,-253.7651582,0.00019012,2]
[386529151,1758355831863,-527.24501181,0.00019012,2]
[386529152,1758355831875,-211.60982999,0.00019012,2]
[386529153,1758355831884,-192.61,0.00019012,2]
[386529154,1758355831894,-392.82159132,0.00019014,2]
[386529155,1758355831903,-709.03322269,0.00019178,2]
[386529156,1758355831924,-1057.44816829,0.00019178,2]
[386529157,1758355831936,-435.18479556,0.00019178,2]
[386529161,1758355832016,-724.03381346,0.00019178,2]
[386529163,1758355832027,-150.0,0.00019269,7]
[386529165,1758355832038,-150.0,0.000196,2]
[386529167,1758355832047,-151.0,0.00019918,2]
[386529169,1758355832058,-1200.0,0.00019927,2]
[386529171,1758355832067,-151.0,0.00019928,2]
[386529173,1758355832080,-370.66,0.00019933,2]
[386529175,1758355832090,-150.0,0.00019934,2]
[386529176,1758355832100,-151.0,0.00019938,2]
[386529177,1758355832110,-151.0,0.00019949,2]
[386529178,1758355832120,-151.0,0.00019959,2]
[386529180,1758355832130,-151.0,0.00019969,2]
[386529181,1758355832140,-500.0,0.00019973,2]
[386529182,1758355832149,-500.0,0.00019973,2]
[386529183,1758355832159,-500.0,0.00019973,2]
[386529184,1758355832169,-500.0,0.00019973,2]
[386529185,1758355832182,-151.0,0.00019979,2]
[386529186,1758355832192,-151.0,0.0001999,2]
[386529187,1758355832203,-8666.3561106,0.00019998,2]
[386529188,1758355832212,-9392.3708689,0.00019998,2]
[386529189,1758355832223,-1375.4268169,0.00019998,2]
[386529190,1758355832232,-3650.65239014,0.00019998,2]
[386529200,1758355837562,-4538.197439,0.00019998,2]
[386529340,1758355839657,-29113.22764646,0.00019998,2]
[386529342,1758355839667,-3458.4649733,0.00019998,2]
[386529344,1758355839678,-199.69467693,0.00019999,2]
[386529346,1758355839689,-23034.32046851,0.0002,2]
[386529348,1758355839699,-30805.43982321,0.0002,2]
[386529350,1758355839709,-2740565.64043094,0.0002,2]
[386529665,1758355842793,-3865.22220735,0.0002,2]
[386530445,1758355890600,150.0,0.00028268,120]
[386530446,1758355893316,500.0,0.00013699,2]
[386530447,1758355950549,150.0,0.00025297,120]
[386530448,1758356071719,150.0,0.00028422,120]
[386530449,1758356127579,158.69,9.506e-05,2]
[386530450,1758356127756,158.69,0.0001037,2]
[386530451,1758356127979,158.69,0.00011234,2]
[386530452,1758356128190,158.69,0.00012098,2]
[386530453,1758356128398,158.69,0.00012963,2]
[386530454,1758356128600,158.69,0.00013827,2]
[386530455,1758356128815,158.69,0.00014691,2]
[386530456,1758356129021,158.69,0.00015555,2]
[386530457,1758356129232,158.69,0.00016419,2]
[386530458,1758356129435,158.69,0.00017283,2]
[386530459,1758356129889,158.69,0.00018147,2]
[386530467,1758356503472,400.0,0.00030136,120]
[386530468,1758356696383,1000.0,0.00030137,120]
[386530480,1758356857665,40050.91490026,0.000185,2]
[386530493,1758356926641,5960.86299701,0.00015,2]
[386530499,1758357031767,-300.89320004,0.0001863,2]
[386530500,1758357031827,-65.58502496,0.0001863,2]
[386530501,1758357031837,-300.0,0.00018724,2]
[386530502,1758357031848,-250.0,0.00018771,2]
[386530503,1758357031857,-412.78175547,0.00018814,2]
[386530504,1758357031867,-250.0,0.00018818,2]
[386530505,1758357031877,-1200.0,0.00018902,2]
[386530506,1758357031886,-338.15434806,0.00018903,2]
[386530507,1758357031896,-500.0,0.00018903,2]
[386530508,1758357031906,-500.0,0.00018903,2]
[386530509,1758357031915,-500.0,0.00018903,2]
[386530510,1758357031925,-500.0,0.00018903,2]
[386530512,1758357031935,-500.0,0.00018903,2]
[386530513,1758357031945,-500.0,0.00018903,2]
[386530514,1758357031955,-500.0,0.00018903,2]
[386530515,1758357031964,-500.0,0.00018903,2]
[386530516,1758357031974,-500.0,0.00018903,2]
[386530517,1758357031983,-500.0,0.00018903,2]
[386530518,1758357031993,-500.0,0.00018903,2]
[386530519,1758357032003,-500.0,0.00018903,2]
[386530520,1758357032013,-528.30268804,0.00018903,2]
[386530521,1758357032022,-24.48979335,0.00018903,2]
[386530525,1758357032067,-259.69207167,0.00018903,2]
[386530535,1758357032146,-248.98654405,0.00018903,2]
[386530588,1758357037946,-251.01345595,0.00018903,2]
[386530589,1758357037956,-500.0,0.00018903,2]
[386530590,1758357037965,-500.0,0.00018903,2]
[386530591,1758357037974,-642.84602377,0.00018903,2]
[386530592,1758357037984,-500.0,0.00018903,2]
[386530593,1758357037993,-500.0,0.00018903,2]
[386530594,1758357038003,-500.0,0.00018903,2]
[386530595,1758357038013,-500.0,0.00018903,2]
[386530596,1758357038022,-500.0,0.00018903,2]
[386530597,1758357038031,-500.0,0.00018903,2]
[386530598,1758357038042,-500.0,0.00018903,2]
[386530599,1758357038051,-500.0,0.00018903,2]
[386530600,1758357038061,-500.0,0.00018903,2]
[386530601,1758357038070,-500.0,0.00018903,2]
[386530602,1758357038079,-500.0,0.00018903,2]
[386530603,1758357038089,-500.0,0.00018903,2]
[386530604,1758357038098,-500.0,0.00018903,2]
[386530605,1758357038108,-500.0,0.00018903,2]
[386530606,1758357038117,-500.0,0.00018903,2]
[386530607,1758357038126,-500.0,0.00018903,2]
[386530608,1758357038135,-412.51263578,0.00018903,2]
[386530609,1758357038151,-87.48736422,0.00018903,2]
[386530610,1758357038161,-500.0,0.00018903,2]
[386530611,1758357038172,-500.0,0.00018903,2]
[386530612,1758357038182,-500.0,0.00018903,2]
[386530613,1758357038192,-500.0,0.00018903,2]
[386530614,1758357038208,-500.0,0.00018903,2]
[386530615,1758357038218,-500.0,0.00018903,2]
[386530616,1758357038227,-500.0,0.00018903,2]
[386530617,1758357038237,-500.0,0.00018903,2]
[386530618,1758357038252,-500.0,0.00018903,2]
[386530619,1758357038262,-200.71263817,0.00018903,2]
[386530625,1758357039728,-299.28736183,0.00018903,2]
[386530626,1758357039737,-500.0,0.00018903,2]
[386530627,1758357039748,-500.0,0.00018903,2]
[386530628,1758357039758,-500.0,0.00018903,2]
[386530629,1758357039768,-500.0,0.00018903,2]
[386530630,1758357039777,-500.0,0.00018903,2]
[386530631,1758357039787,-500.0,0.00018903,2]
[386530632,1758357039796,-500.0,0.00018903,2]
[386530633,1758357039805,-500.0,0.00018903,2]
[386530634,1758357039815,-500.0,0.00018903,2]
[386530635,1758357039825,-500.0,0.00018903,2]
[386530636,1758357039834,-500.0,0.00018903,2]
[386530637,1758357039843,-500.0,0.00018903,2]
[386530638,1758357039857,-500.0,0.00018903,2]
[386530639,1758357039866,-500.0,0.00018903,2]
[386530640,1758357039875,-500.0,0.00018903,2]
[386530641,1758357039886,-500.0,0.00018903,2]
[386530642,1758357039897,-500.0,0.00018903,2]
[386530643,1758357039907,-500.0,0.00018903,2]
[386530644,1758357039916,-500.0,0.00018903,2]
[386530645,1758357039927,-500.0,0.00018903,2]
[386530646,1758357039936,-500.0,0.00018903,2]
[386530647,1758357039945,-619.1390237,0.00018903,2]
[386530649,1758357039954,-500.0,0.00018903,2]
[386530651,1758357039964,-500.0,0.00018903,2]
[386530653,1758357039974,-500.0,0.00018903,2]
[386530655,1758357039983,-1086.81,0.00018904,2]
[386530657,1758357039992,-543.86725563,0.00018912,2]
[386530660,1758357040002,-1094.0,0.00018976,2]
[386530662,1758357040012,-819.57,0.00018978,2]
[386530664,1758357040021,-289.61868839,0.00018989,2]
[386530665,1758357040030,-139300.42633073,0.0001899,2]
[386530666,1758357040040,-158.69,0.00019012,2]
[386530667,1758357040049,-543.86725561,0.00019022,2]
[386530668,1758357040058,-169.41,0.00019044,2]
[386530669,1758357040067,-543.86725561,0.00019132,2]
[386530670,1758357040077,-160.0,0.00019155,2]
[386530671,1758357040086,-150.0,0.00019238,7]
[386530672,1758357040095,-543.86725561,0.00019241,2]
[386530673,1758357040105,-543.86725561,0.00019351,2]
[386530674,1758357040114,-543.86725561,0.00019461,2]
[386530675,1758357040123,-543.86725561,0.00019571,2]
[386530676,1758357040132,-543.86725561,0.0001968,2]
[386530677,1758357040142,-168.0,0.00019746,2]
[386530678,1758357040151,-543.86725561,0.0001979,2]
[386530679,1758357040160,-970.26593,0.000198,2]
[386530680,1758357040169,-152.09,0.00019838,2]
[386530681,1758357040179,-2500.0,0.000199,2]
[386530682,1758357040188,-5000.0,0.000199,2]
[386530683,1758357040197,-4868.9499234,0.000199,2]
[386530684,1758357040206,-229.72416903,0.000199,2]
[386530685,1758357040216,-543.86725561,0.000199,2]
[386530686,1758357040225,-150.76656224,0.000199,2]
[386530687,1758357040234,-150.0,0.00019934,2]
[386530688,1758357040243,-500.0,0.00019973,2]
[386530689,1758357040253,-503.07586889,0.00019973,2]
[386530690,1758357040262,-500.0,0.00019973,2]
[386530691,1758357040271,-500.0,0.00019973,2]
[386530692,1758357040281,-500.0,0.00019973,2]
[386530693,1758357040290,-500.0,0.00019973,2]
[386530694,1758357040300,-500.0,0.00019973,2]
[386530695,1758357040309,-500.0,0.00019973,2]
[386530696,1758357040318,-500.0,0.00019973,2]
[386530697,1758357040327,-500.0,0.00019973,2]
[386530698,1758357040336,-500.0,0.00019973,2]
[386530699,1758357040345,-500.0,0.00019973,2]